Cogmind - Beta 15 @@@ ROGUE MODE // 2025.09.20 @ 04:54:57 Player: Lillith Result: Self-destructed Performance ------------- Evolutions (2) 1000 Regions Visited (3) 600 Robots Destroyed (29) 145 Value Destroyed (676) 676 Prototype IDs (12) 240 Alien Tech Used (0) 0 Bonus (0) 0 TOTAL SCORE: 2661 Bonus ------- None Cogmind --------- Core Integrity 550/550 Matter 280/300 Energy 200/200 System Corruption 0% Temperature Cool (0) Movement Rolling (129) Ox2 Location -8/Materials Parts ------- > --- POWER (1) -------- Subdweller Power Source > --- PROPULSION (4) --- Compact Wheel Subdweller Monowheel > --- UTILITY (4) ------ Disposable Heat Sink Huge Storage Unit > --- WEAPON (2) ------- Subdweller Laser Subdweller Beam Cannon > --- INVENTORY (25) --- Subdweller Power Source Subdweller Power Source Subdweller Power Source Subdweller Power Source Subdweller Power Source Meta Core Subdweller Monowheel Subdweller Monowheel Large Storage Unit High-capacity Matter Pod (200) High-capacity Matter Pod (200) Subdweller Optics Signal Interpreter Scrap Shield Hacking Suite Tractor Beam Faulty Improved EM Shotgun Assault Rifle Assault Rifle Subdweller Machine Gun Light Cannon Light Cannon Ripper Peak State ------------ > --- POWER ------------ Subdweller Power Source > --- PROPULSION ------- Light Treads Wheel > --- UTILITY ---------- Huge Storage Unit Subdweller Optics > --- WEAPON ----------- Improved EM Shotgun Improved EM Shotgun > --- INVENTORY -------- Subdweller Power Source Subdweller Power Source Subdweller Power Source Subdweller Power Source Meta Core Compact Wheel Subdweller Monowheel Subdweller Monowheel Large Storage Unit High-capacity Matter Pod High-capacity Matter Pod Subdweller Optics Signal Interpreter Scrap Shield Hacking Suite Tractor Beam Improved EM Shotgun Assault Rifle Assault Rifle Light Cannon Light Cannon Ripper [Rating: 18] Favorites ----------- Power Ion Engine Engine Ion Engine Propulsion Light Treads Treads Light Treads Wheel Wheel Utility Huge Storage Unit Device Seismic Detector Storage Huge Storage Unit Weapon Light Cannon Energy Gun Improved EM Shotgun Energy Cannon Subdweller Beam Cannon Ballistic Gun Assault Rifle Ballistic Cannon Light Cannon Slashing Weapon Ripper Build | -11 -10 -10 -8 ------- Run | Yrd Mat Sub Mat Slots Evolved 4 | . . . 4 Power . | . . . . Propulsion 2 | . . . 2 Utility 2 | . . . 2 Weapon . | . . . . Parts Attached 28 | 9 6 13 . Power 5 | 2 . 3 . Engine 5 | 2 . 3 . Core . | . . . . Reactor . | . . . . Propulsion 5 | 2 . 3 . Treads 2 | 1 . 1 . Leg . | . . . . Wheel 3 | 1 . 2 . Hover . | . . . . Flight . | . . . . Utility 8 | 3 2 3 . Device 5 | 2 . 3 . Storage 3 | 1 2 . . Processor . | . . . . Hackware . | . . . . Protection . | . . . . Artifact . | . . . . Weapon 10 | 2 4 4 . Energy Gun 4 | . 2 2 . Energy Cannon 1 | . . 1 . Ballistic Gun 2 | 2 . . . Ballistic Cannon 2 | . 2 . . Launcher . | . . . . Special Weapon . | . . . . Impact Weapon . | . . . . Slashing Weapon 1 | . . 1 . Piercing Weapon . | . . . . Special Melee Weapon . | . . . . Unidentified Prototypes 1 | . 1 . . Parts Lost 11 | . . 11 . Power 3 | . . 3 . Propulsion 3 | . . 3 . Utility 2 | . . 2 . Weapon 3 | . . 3 . Highest Loss Streak 4 | . . 4 . To Critical Strikes . | . . . . Average Backups 14 | 4 10 19 . Power 2 | . 1 3 . Propulsion 2 | 2 2 3 . Utility 5 | . 4 6 . Weapon 4 | . 3 5 . Tool/Special . | . . . . Unused Backups 18 | . 3 1 14 Power 4 | . . . 4 Propulsion 4 | . 2 . 2 Utility 6 | . . 1 5 Weapon 3 | . 1 . 2 Tool/Special 1 | . . . 1 Average Slot Usage (%) 97 | . 99 95 . Engine 13 | . 14 13 . Treads 13 | . 14 12 . Wheel 14 | . 14 14 . Device 12 | . 14 11 . Storage 14 | . 14 14 . Energy Gun 13 | . 10 16 . Ballistic Cannon 13 | . 17 9 . Peak Build Rating 18 | 7 13 18 . Average Rating 11 | 5 9 14 . On Entrance 9 | . 7 13 17 Naked Turns . | . . . . Heaviest Build 98 | 15 92 98 . Greatest Support 36 | 10 10 36 . Greatest Overweight (x) 9 | 1 9 9 . Average Overweight (x) 4 | . 3 7 . Largest Inventory Capacity 25 | 8 25 25 . Average Capacity 19 | 7 16 25 . Most Carried 25 | 7 15 25 . Average Carried 14 | 4 10 19 . Final Capacity 25 | 8 25 25 25 Final Carried 24 | 7 15 24 24 Class Distribution -------------------- 100% | Mutant Dominant Class ---------------- Mutant | -10/Materials Mutant | -10/Subcaves Mutant | -8/Materials Resources | -11 -10 -10 -8 ----------- Run | Yrd Mat Sub Mat Matter Collected 1053 | 320 450 283 . Remotely 73 | 73 . . . Salvage Created 950 | 103 402 445 . Parts 69 | 10 32 27 . Haulers Intercepted 1 | . 1 . . Recyclers Shooed . | . . . . Parts Field Recycled . | . . . . Retrieved Matter . | . . . . Parts Self-Destructed 2 | . . 2 . Prevented . | . . . . Kills | -11 -10 -10 -8 ------- Run | Yrd Mat Sub Mat Combat Hostiles Destroyed 20 | . 10 10 . Guns 7 | . . 7 . Cannons 12 | . 10 2 . Classes Destroyed 9 | 2 6 1 . Builder 1 | . 1 . . Tunneler 1 | 1 . . . Hauler 1 | . 1 . . Recycler 3 | 1 2 . . Operator 1 | . 1 . . Watcher 2 | . 2 . . Swarmer 6 | . 6 . . Grunt 4 | . 4 . . Subdweller 10 | . . 10 . Best Kill Streak 6 | 2 6 3 . Combat Bots Only 3 | . 3 3 . Max Kills in Single Turn 2 | 1 2 1 . Gunslinging . | . . . . Exploded . | . . . . Melee . | . . . . Uniques/NPCs Destroyed . | . . . . Combat | -11 -10 -10 -8 -------- Run | Yrd Mat Sub Mat Hostile Shots Fired 85 | . 28 57 . Missed 21 | . 9 12 . Hits 64 | . 19 45 . Projectile 64 | . 19 45 . Critical Strikes 1 | . 1 . . Damage Taken 1226 | . 171 1055 . Core 225 | . 22 203 . Absorbed by Shields . | . . . . Core Remaining (%) 55 | 100 . 10 . Volleys Fired 80 | 5 31 44 . Largest 2 | 2 2 2 . Hottest 105 | 40 60 105 . Shots Fired 145 | 10 62 73 . Gun 55 | 10 . 45 . Cannon 90 | . 62 28 . Launcher . | . . . . Special . | . . . . Kinetic 100 | 10 62 28 . Thermal 9 | . . 9 . Explosive . | . . . . Electromagnetic 36 | . . 36 . Robot Hit Streak 16 | 2 8 16 . Robot Miss Streak 4 | 2 4 2 . Penetration Max . | . . . . Secondary Targets 1 | . . 1 . Max Gunslinging Chain 1 | . . 1 . Shots Hit Robots 101 | 5 31 65 . Core Hits 46 | 3 17 26 . Critical Kills . | . . . . Critical Parts Destroyed . | . . . . Critical Strikes 4 | . 2 2 . Blast 4 | . 2 2 . Melee Attacks . | . . . . Impact . | . . . . Slashing . | . . . . Piercing . | . . . . Sneak Attacks . | . . . . Combat Hostiles . | . . . . Follow-up Attacks . | . . . . Damage Inflicted 1791 | 59 602 1130 . Guns 784 | 59 . 725 . Cannons 942 | . 602 340 . Explosions 65 | . . 65 . Melee . | . . . . Ramming . | . . . . Kinetic 1001 | 59 602 340 . Thermal 228 | . . 228 . Explosive . | . . . . Electromagnetic 562 | . . 562 . Impact . | . . . . Slashing . | . . . . Piercing . | . . . . Highest Corruption . | . . . . Average Corruption . | . . . . Corruption Purged . | . . . . Corruption Blocked . | . . . . Overload Shots . | . . . . Overflow Damage 8 | . 8 . . Projectiles 8 | . 8 . . Explosions . | . . . . Melee . | . . . . Knockbacks 10 | . 5 5 . Impact . | . . . . Kinetic 7 | . 4 3 . Secondary 3 | . 1 2 . Self-Inflicted Damage . | . . . . Shots . | . . . . Rammed . | . . . . Targets Rammed . | . . . . Kicked . | . . . . Crushed . | . . . . Highest Temperature 24 | . 24 6 . Average Temperature 14 | . 16 4 . Received Heat Transfer 216 | . 36 180 . Siege Activations . | . . . . Martial Activations . | . . . . Shielding Activations . | . . . . Robots Disrupted 1 | . . 1 . Combat Hostiles 1 | . . 1 . Robots Corrupted 1 | . . 1 . Combat Hostiles 1 | . . 1 . Parts Fried 6 | . . 6 . Impact Corruptions . | . . . . Robots Melted . | . . . . Combat Hostiles . | . . . . Parts Melted 1 | . . 1 . Heat Transferred 250 | . . 250 . Parts Sabotaged . | . . . . Parts Stolen . | . . . . Parts Stripped . | . . . . Power Chain Reactions 1 | . . 1 . Alert | -11 -10 -10 -8 ------- Run | Yrd Mat Sub Mat Maximum Alert Level . | . . . . Low Security (%) 100 | 100 100 . . Level 1 . | . . . . Level 2 . | . . . . Level 3 . | . . . . Level 4 . | . . . . Level 5 . | . . . . High Security . | . . . . Max Security . | . . . . Peak Influence 122 | 5 122 . . Initial . | . . . . Average 39 | 2 42 . . Influence Increases 307 | 10 297 . . Destroy 0b10 Robot/C 200 | . 200 . . Destroy 0b10 Robot/NC 45 | 10 35 . . Destroy Leader 46 | . 46 . . Successful Hack 15 | . 15 . . Destroy Structure 1 | . 1 . . Influence Decreases 307 | 10 297 . . Time Decay 307 | 10 297 . . Squads Dispatched 2 | . 2 . . Investigation 1 | . 1 . . Extermination . | . . . . Reinforcement 1 | . 1 . . Assault . | . . . . Garrison . | . . . . Intercept . | . . . . Searches Triggered . | . . . . Construction Impeded . | . . . . Haulers Reinforced . | . . . . Active Scanning Responses . | . . . . Cargo Convoy Interrupts . | . . . . Stealth | -11 -10 -10 -8 --------- Run | Yrd Mat Sub Mat Distress Signals 1 | . 1 . . Communications Jammed . | . . . . Distress Signals . | . . . . Times Spotted 24 | . 14 10 . Peak Tracking Total 4 | . 4 2 . Tactical Retreats . | . . . . Traps | -11 -10 -10 -8 ------- Run | Yrd Mat Sub Mat Traps Triggered . | . . . . Indirectly . | . . . . Trap Hack Attempts . | . . . . Triggered . | . . . . Disarmed . | . . . . Reprogrammed . | . . . . Reused . | . . . . Traps Extracted . | . . . . Installed . | . . . . Triggered . | . . . . Machines | -11 -10 -10 -8 ---------- Run | Yrd Mat Sub Mat Machines Disabled 1 | . . 1 . Max in Single Turn 1 | . . 1 . Machines Repaired . | . . . . Machines Dismantled . | . . . . Machines Sabotaged . | . . . . Overloaded Fab Kills . | . . . . Hacking | -11 -10 -10 -8 --------- Run | Yrd Mat Sub Mat Machines Accessed 5 | . 4 1 . Terminals 2 | . 2 . . Fabricators . | . . . . Repair Stations . | . . . . Recycling Units 2 | . 2 . . Scanalyzers . | . . . . Garrison Access . | . . . . Total Hacks 14 | . 13 1 . Successful 9 | . 8 1 . Failed 4 | . 4 . . Catastrophic . | . . . . Database Lockouts 1 | . 1 . . Manual 6 | . 6 . . Terminals 7 | . 7 . . Fabricators . | . . . . Repair Stations . | . . . . Recycling Units 6 | . 6 . . Scanalyzers . | . . . . Garrison Access . | . . . . Terminal Hacks 4 | . 3 1 . Robot Analysis 1 | . 1 . . Locate Traps 1 | . 1 . . Hauler Manifests 1 | . 1 . . Proto ID Catalog 1 | . . 1 . Fabricator Hacks . | . . . . Repair Station Hacks . | . . . . Recycling Unit Hacks 5 | . 5 . . Process 2 | . 2 . . Retrieve Matter 3 | . 3 . . Scanalyzer . | . . . . Garrison Access Hacks . | . . . . Unauthorized Hacks . | . . . . Terminals . | . . . . Fabricators . | . . . . Repair Stations . | . . . . Recycling Units . | . . . . Scanalyzers . | . . . . Garrison Access . | . . . . Data Cores Recovered . | . . . . Used . | . . . . Hacking Detections 4 | . 4 . . Full Trace Events 1 | . 1 . . Feedback Events . | . . . . Feedback Blocked . | . . . . Robot Schematics Acquired . | . . . . Robots Built . | . . . . Authchips . | . . . . Time . | . . . . Total Robot Build Rating . | . . . . Part Schematics Acquired . | . . . . Parts Built . | . . . . Authchips . | . . . . Time . | . . . . Total Part Build Rating . | . . . . Parts Repaired . | . . . . Time . | . . . . Parts Recycled . | . . . . Recycled Matter 207 | . 207 . . Retrieved Matter 207 | . 207 . . Retrieved Components . | . . . . Parts Scanalyzed . | . . . . Part Schematics Acquired . | . . . . Parts Damaged . | . . . . Bothacking | -11 -10 -10 -8 ------------ Run | Yrd Mat Sub Mat Used RIF Installer . | . . . . Robots Hacked . | . . . . Non-combat . | . . . . Combat . | . . . . Robot Hacks Applied . | . . . . Relay Couplers Released . | . . . . Fabnet Peak Effective % . | . . . . Robots Rewired . | . . . . Allies Hacked . | . . . . Hacks Repelled . | . . . . Allies | -11 -10 -10 -8 -------- Run | Yrd Mat Sub Mat Total Allies . | . . . . Largest Group . | . . . . Highest-Rated Group . | . . . . Highest-Rated Ally . | . . . . Total Orders . | . . . . Ally Attacks . | . . . . Total Damage . | . . . . Kills . | . . . . Allies Corrupted . | . . . . Allies Melted . | . . . . Intel | -11 -10 -10 -8 ------- Run | Yrd Mat Sub Mat Active Infowar (turns) 1286 | 9 889 388 . Optics 362 | . . 362 . Seismic 924 | 9 889 26 . Robot Analysis Total 1 | . 1 . . Derelict Logs Recovered 1 | . . 1 . Drone Launches . | . . . . Drone Recoveries . | . . . . Exploration | -11 -10 -10 -8 ------------- Run | Yrd Mat Sub Mat Turns Passed 1789 | 80 889 820 . Spaces Moved 930 | 54 569 307 . Core 2 | 2 . . . Treads 14 | . . 14 . Legs . | . . . . Wheels 914 | 52 569 293 . Hover . | . . . . Flight . | . . . . Fastest Speed 50 | 50 95 129 . Average Speed 156 | 86 133 211 . Slowest Speed 480 | 95 215 480 . Overloaded Moves . | . . . . Propulsion Burnouts . | . . . . Robots Hopped . | . . . . Potential Cave-ins . | . . . . Cave-ins Triggered . | . . . . Exploration Rate (%) 22 | 4 49 13 . Regions Visited 3 Branch Regions 1 Pre-discovered Areas 1 | . . 1 . Known Exits Taken . | . . . . Unknown Exits Taken 3 | 1 1 1 . Scrap Searched 6 | . . 6 . Spaces Dug . | . . . . Terrain Destroyed 9 | . . 9 . Melee . | . . . . Projectile . | . . . . AOE 9 | . . 9 . Terrain Rammed . | . . . . Walls Destroyed . | . . . . Machines Disabled . | . . . . Actions | -11 -10 -10 -8 --------- Run | Yrd Mat Sub Mat Total 1108 | 73 636 399 . Wait 29 | . 17 12 . Move 927 | 53 568 306 . Hop . | . . . . Pick Up 27 | 5 6 16 . Fast Attach 16 | 8 4 4 . Attach 8 | . . 8 . Detach 6 | 1 4 1 . Swap 10 | 1 2 7 . Drop 5 | . 4 1 . Fire 80 | 5 31 44 . Melee . | . . . . Ram . | . . . . Kick . | . . . . Crush . | . . . . Escape Stasis . | . . . . Rewire . | . . . . Trap . | . . . . Miscellaneous . | . . . . Route ------- -11/Scrapyard -10/Materials (discovered 4 exits: [*Mat] / [*Min x2] / *Sub) -10/Subcaves -8/Materials History --------- Turn | Location | Event 19 | -11/Scrapyard | Discovered new exit (range 14) 81 | -11/Scrapyard | Entered Materials 113 | -10/Materials | Central database locked down 133 | -10/Materials | Discovered new exit (range 13) 284 | -10/Materials | Discovered new exit (range 6) 314 | -10/Materials | Build established: Mutant 514 | -10/Materials | Discovered new exit (range 11) 740 | -10/Materials | Discovered new exit (range 15) 970 | -10/Materials | Entered Subcaves 1027 | -10/Subcaves | Lost 3 parts (1p1u1w) 1111 | -10/Subcaves | Ambushed by Subdwellers from Twisted Machinery 1248 | -10/Subcaves | Visited 4L-MR0's lab 1281 | -10/Subcaves | Found Meta Core 1397 | -10/Subcaves | Learned location of Zion (-6) 1626 | -10/Subcaves | Discovered new exit (range 11) 1645 | -10/Subcaves | Core integrity fell below 50% 1721 | -10/Subcaves | Disturbed a concealed Subdweller 1747 | -10/Subcaves | Core integrity fell below 20% 1772 | -10/Subcaves | Lost 4 parts (1p1n1u1w) 1790 | -10/Subcaves | Entered Materials 1790 | -8/Materials | Evolved 4 slots: Propulsion x2, Utility x2 1790 | -8/Materials | Self-destructed Last Messages --------------- to Scrap Shield. 01732_ Sub. Power Source destroyed. 01736_ Lgt. Treads destroyed. 01741_ Sub. Optics destroyed. 01747_ Sub. Power Source melted. 01747_ Q3-5VW(R) destroyed. 01749_ Acquired 10 matter. 01753_ Acquired Sub. Beam Cannon. 01754_ Searching scrap... 01754_ Found Shrapnel Trap. 01754_ Found 59 Matter. 01756_ Searching scrap... 01756_ Found Sub. Power Source. 01756_ Found 37 Matter. 01759_ Acquired Sub. Power Source. 01760_ Acquired 10 matter. 01773_ Acquired Disposable Heat Sink. PARAMETERS=PROPULSION+2,UTILITY+2 LOCATION=UNKNOWN GOAL=ESCAPE Map ----- +----------------------------------------------------+ | ????????????????????????????????? | | ????????????????????????????????? | | ????????????????????????????????? | | ????????????????????????????????? | | ????????????????????????????????? | | ????????????????????????????????? | | ????????????????????????????????? | | ????????????????????????????????? | | ????????????????????????????????? | | ????????????????????????????????? | | ????????????????????????????????? | | ????????????????????????????????? | | ????????????????????????????????? | | ????????????????????????????????? | | ????????????????????????????????? | | ????????????????????????????????? | | ????????????????????????????????? | | ????????????????????????????????? | | ????????????????????????????????? | | ????????????????????????????????? | | ????????????????????????????????? | | ????????????????????????????????? | | ????????????????????????????????? | | ??????#########?????????????????? | | ??????# #?????????????????? | | ??????# @ #?????????????????? | | ??????# #?????????????????? | | ??????##### #?????????????????? | | ???????????? #?????????????????? | | ????????????? #?????????????????? | | ????????????????????????????????? | | ????????????????????????????????? | | ????????????????????????????????? | | ????????????????????????????????? | | ????????????????????????????????? | | ????????????????????????????????? | | ????????????????????????????????? | | ????????????????????????????????? | | ????????????????????????????????? | | ????????????????????????????????? | | ????????????????????????????????? | | ????????????????????????????????? | | ????????????????????????????????? | | ????????????????????????????????? | | ????????????????????????????????? | | ????????????????????????????????? | | ????????????????????????????????? | | ????????????????????????????????? | | ????????????????????????????????? | | ????????????????????????????????? | +----------------------------------------------------+ Best States ------------- Heat Dissipation 25 Coolant Potential 50 Energy Generation 15 Energy Capacity 250 Matter Stores 300 Matter Capacity 300 Sight Range 21 Terrain Scan Density 10 Evasion (%) 44 Recoil Reduction 1 Item Schematics ----------------- None Robot Schematics ------------------ None Fabricated ------------ Nothing Repaired ---------- Nothing Alien Tech Used ----------------- None Achievements -------------- None Challenges ------------ None Game ------ Seed ShrapnelSchematicPower Manual? 0 Play Time 00:13:44 Cumulative 63.3 hours Start 2025.09.20 @ 04:38:43 End 2025.09.20 @ 04:54:57 Sessions 1 Manual Loads 0 Difficulty Rogue Special Mode None Game No. 121 Rogue 121 Adventurer 0 Explorer 0 Win Type - Total 0 Types 0/0/0/0/0/0/0/0/0/0 Lore% 50 Gallery% 36 Achievement% 34 Wizard Run 0 Options --------- Layout 2 ASCII 0 Keyboard 1 Movement Arrows Keybinds 0 Fullscreen 2 Font 32/SmallcapsGlow Map View 50x44 Zoom Use 0% Tactical HUD 1 Map Filters NONE Filters NONE Steam 1 RUN: eba19dbb-74bb-4860-b449-ba287a5af3c4